Cogmind - Beta 15 @@@ ROGUE MODE // 2025.08.19 @ 06:12:55 Player: LameThyst Result: Core destroyed Performance ------------- Evolutions (0) 0 Regions Visited (1) 200 Robots Destroyed (14) 70 Value Destroyed (241) 241 Prototype IDs (0) 0 Alien Tech Used (0) 0 Bonus (0) 0 TOTAL SCORE: 511 Bonus ------- None Cogmind --------- Core Integrity 0/250 Matter 161/300 Energy 100/100 System Corruption 0% Temperature Cool (0) Movement Core (50) Location -10/Materials Parts ------- > --- POWER (1) -------- (None) > --- PROPULSION (2) --- (None) > --- UTILITY (2) ------ (None) > --- WEAPON (2) ------- (None) > --- INVENTORY (5) ---- Light Ion Engine Wheel Small Storage Unit Seismic Detector Mining Laser Peak State ------------ > --- POWER ------------ Light Ion Engine > --- PROPULSION ------- Light Treads Compact Wheel > --- UTILITY ---------- Small Storage Unit Seismic Detector > --- WEAPON ----------- Assault Rifle Light Assault Rifle > --- INVENTORY -------- Light Ion Engine Light Treads Wheel Light Assault Rifle [Rating: 7] Favorites ----------- Power Light Ion Engine Engine Light Ion Engine Propulsion Light Treads Treads Light Treads Wheel Compact Wheel Utility Large Storage Unit Device Seismic Detector Storage Large Storage Unit Weapon Light Assault Rifle Ballistic Gun Light Assault Rifle Launcher Grenade Launcher Build | -11 -10 ------- Run | Yrd Mat Slots Evolved . | . . Power . | . . Propulsion . | . . Utility . | . . Weapon . | . . Parts Attached 12 | 7 5 Power 2 | 1 1 Engine 2 | 1 1 Core . | . . Reactor . | . . Propulsion 2 | 2 . Treads 1 | 1 . Leg . | . . Wheel 1 | 1 . Hover . | . . Flight . | . . Utility 4 | 2 2 Device 1 | 1 . Storage 3 | 1 2 Processor . | . . Hackware . | . . Protection . | . . Artifact . | . . Weapon 4 | 2 2 Energy Gun . | . . Energy Cannon . | . . Ballistic Gun 2 | 2 . Ballistic Cannon . | . . Launcher 2 | . 2 Special Weapon . | . . Impact Weapon . | . . Slashing Weapon . | . . Piercing Weapon . | . . Special Melee Weapon . | . . Unidentified Prototypes . | . . Parts Lost 4 | . 4 Power . | . . Propulsion 1 | . 1 Utility 1 | . 1 Weapon 2 | . 2 Highest Loss Streak 3 | . 3 To Critical Strikes . | . . Average Backups 6 | 3 7 Power 1 | . 1 Propulsion 1 | 1 1 Utility 1 | . 1 Weapon 2 | . 2 Tool/Special . | . . Unused Backups 7 | . 7 Power 1 | . 1 Propulsion 2 | . 2 Utility 1 | . 1 Weapon 3 | . 3 Tool/Special . | . . Average Slot Usage (%) 84 | . 84 Engine 13 | . 13 Treads 13 | . 13 Wheel 8 | . 8 Device 8 | . 8 Storage 13 | . 13 Ballistic Gun 21 | . 21 Launcher 4 | . 4 Peak Build Rating 7 | 7 7 Average Rating 6 | 5 6 On Entrance 3 | . 7 Naked Turns 4 | . 4 Heaviest Build 29 | 12 29 Greatest Support 16 | 16 16 Greatest Overweight (x) 9 | . 9 Average Overweight (x) . | . 1 Largest Inventory Capacity 15 | 8 15 Average Capacity 11 | 7 13 Most Carried 11 | 6 11 Average Carried 6 | 3 8 Final Capacity 8 | 8 5 Final Carried 6 | 6 5 Class Distribution -------------------- 100% | Mutant Dominant Class ---------------- Mutant | -10/Materials Resources | -11 -10 ----------- Run | Yrd Mat Matter Collected 333 | 298 35 Remotely . | . . Salvage Created 334 | 136 198 Parts 32 | 7 25 Haulers Intercepted . | . . Recyclers Shooed 1 | . 1 Parts Field Recycled . | . . Retrieved Matter . | . . Parts Self-Destructed . | . . Prevented . | . . Kills | -11 -10 ------- Run | Yrd Mat Combat Hostiles Destroyed 7 | . 7 Guns 3 | . 3 AOE 4 | . 4 Classes Destroyed 6 | 2 4 Builder 2 | . 2 Tunneler 2 | 2 . Recycler 2 | 1 1 Operator 1 | . 1 Swarmer 3 | . 3 Grunt 4 | . 4 Best Kill Streak 9 | 2 9 Combat Bots Only 6 | . 6 Max Kills in Single Turn 3 | 1 3 Gunslinging . | . . Exploded 3 | . 3 Melee . | . . Uniques/NPCs Destroyed . | . . Combat | -11 -10 -------- Run | Yrd Mat Hostile Shots Fired 39 | . 39 Missed 8 | . 8 Hits 31 | . 31 Projectile 31 | . 31 Damage Taken 665 | . 665 Core 251 | . 251 Absorbed by Shields . | . . Core Remaining (%) 100 | 100 . Volleys Fired 26 | 7 19 Largest 2 | 2 2 Hottest 50 | 40 50 Shots Fired 50 | 14 36 Gun 40 | 14 26 Cannon . | . . Launcher 10 | . 10 Special . | . . Kinetic 40 | 14 26 Thermal . | . . Explosive 10 | . 10 Electromagnetic . | . . Robot Hit Streak 9 | 6 9 Robot Miss Streak 3 | 3 3 Penetration Max . | . . Secondary Targets . | . . Shots Hit Robots 30 | 9 21 Core Hits 25 | 5 20 Critical Kills . | . . Critical Parts Destroyed . | . . Critical Strikes . | . . Melee Attacks . | . . Impact . | . . Slashing . | . . Piercing . | . . Sneak Attacks . | . . Combat Hostiles . | . . Follow-up Attacks . | . . Damage Inflicted 784 | 84 700 Guns 248 | 84 164 Cannons . | . . Explosions 518 | . 518 Melee . | . . Ramming 18 | . 18 Kinetic 248 | 84 164 Thermal . | . . Explosive 518 | . 518 Electromagnetic . | . . Impact . | . . Slashing . | . . Piercing . | . . Highest Corruption . | . . Average Corruption . | . . Corruption Purged . | . . Corruption Blocked . | . . Overload Shots . | . . Overflow Damage 55 | . 55 Projectiles . | . . Explosions 55 | . 55 Melee . | . . Knockbacks . | . . Impact . | . . Kinetic . | . . Secondary . | . . Self-Inflicted Damage 221 | . 221 Shots 6 | . 6 Rammed . | . . Targets Rammed . | . . Kicked . | . . Crushed . | . . Highest Temperature 60 | . 60 Average Temperature 23 | . 23 Received Heat Transfer 123 | . 123 Siege Activations . | . . Martial Activations . | . . Shielding Activations . | . . Robots Disrupted . | . . Combat Hostiles . | . . Robots Corrupted . | . . Combat Hostiles . | . . Parts Fried . | . . Impact Corruptions . | . . Robots Melted . | . . Combat Hostiles . | . . Parts Melted . | . . Heat Transferred . | . . Parts Sabotaged . | . . Parts Stolen . | . . Parts Stripped . | . . Power Chain Reactions . | . . Alert | -11 -10 ------- Run | Yrd Mat Maximum Alert Level . | . . Low Security (%) 100 | 100 100 Level 1 . | . . Level 2 . | . . Level 3 . | . . Level 4 . | . . Level 5 . | . . High Security . | . . Max Security . | . . Peak Influence 156 | 5 156 Initial 3 | . 3 Average 38 | 1 58 Influence Increases 265 | 15 250 Destroy 0b10 Robot/C 140 | . 140 Destroy 0b10 Robot/NC 35 | 15 20 Destroy Leader 30 | . 30 Successful Hack 14 | . 14 Disable Machine 15 | . 15 Destroy Structure 31 | . 31 Influence Decreases 139 | 10 129 Entered New Map 2 | . 2 Time Decay 97 | 10 87 Lost Part 40 | . 40 Squads Dispatched 1 | . 1 Investigation . | . . Extermination . | . . Reinforcement 1 | . 1 Assault . | . . Garrison . | . . Intercept . | . . Searches Triggered . | . . Construction Impeded . | . . Haulers Reinforced . | . . Active Scanning Responses . | . . Cargo Convoy Interrupts . | . . Stealth | -11 -10 --------- Run | Yrd Mat Distress Signals 1 | . 1 Communications Jammed . | . . Distress Signals . | . . Times Spotted 12 | . 12 Peak Tracking Total 6 | . 6 Tactical Retreats . | . . Traps | -11 -10 ------- Run | Yrd Mat Traps Triggered . | . . Indirectly . | . . Trap Hack Attempts . | . . Triggered . | . . Disarmed . | . . Reprogrammed . | . . Reused . | . . Traps Extracted . | . . Installed . | . . Triggered . | . . Machines | -11 -10 ---------- Run | Yrd Mat Machines Disabled 1 | . 1 Max in Single Turn 1 | . 1 Machines Repaired . | . . Machines Dismantled . | . . Machines Sabotaged . | . . Overloaded Fab Kills . | . . Hacking | -11 -10 --------- Run | Yrd Mat Machines Accessed 1 | . 1 Terminals 1 | . 1 Fabricators . | . . Repair Stations . | . . Recycling Units . | . . Scanalyzers . | . . Garrison Access . | . . Total Hacks 2 | . 2 Successful 1 | . 1 Failed 1 | . 1 Catastrophic 1 | . 1 Database Lockouts . | . . Manual 2 | . 2 Terminals 2 | . 2 Fabricators . | . . Repair Stations . | . . Recycling Units . | . . Scanalyzers . | . . Garrison Access . | . . Terminal Hacks . | . . Fabricator Hacks . | . . Repair Station Hacks . | . . Recycling Unit Hacks . | . . Scanalyzer . | . . Garrison Access Hacks . | . . Unauthorized Hacks 1 | . 1 Terminals 1 | . 1 Skim 1 | . 1 Fabricators . | . . Repair Stations . | . . Recycling Units . | . . Scanalyzers . | . . Garrison Access . | . . Data Cores Recovered . | . . Used . | . . Hacking Detections 1 | . 1 Full Trace Events . | . . Feedback Events . | . . Feedback Blocked . | . . Robot Schematics Acquired . | . . Robots Built . | . . Authchips . | . . Time . | . . Total Robot Build Rating . | . . Part Schematics Acquired . | . . Parts Built . | . . Authchips . | . . Time . | . . Total Part Build Rating . | . . Parts Repaired . | . . Time . | . . Parts Recycled . | . . Recycled Matter . | . . Retrieved Matter . | . . Retrieved Components . | . . Parts Scanalyzed . | . . Part Schematics Acquired . | . . Parts Damaged . | . . Bothacking | -11 -10 ------------ Run | Yrd Mat Used RIF Installer . | . . Robots Hacked . | . . Non-combat . | . . Combat . | . . Robot Hacks Applied . | . . Relay Couplers Released . | . . Fabnet Peak Effective % . | . . Robots Rewired . | . . Allies Hacked . | . . Hacks Repelled . | . . Allies | -11 -10 -------- Run | Yrd Mat Total Allies . | . . Largest Group . | . . Highest-Rated Group . | . . Highest-Rated Ally . | . . Total Orders . | . . Ally Attacks . | . . Total Damage . | . . Kills . | . . Allies Corrupted . | . . Allies Melted . | . . Intel | -11 -10 ------- Run | Yrd Mat Active Infowar (turns) 153 | 30 123 Seismic 153 | 30 123 Robot Analysis Total . | . . Derelict Logs Recovered . | . . Drone Launches . | . . Drone Recoveries . | . . Exploration | -11 -10 ------------- Run | Yrd Mat Turns Passed 333 | 118 215 Spaces Moved 181 | 83 98 Core 18 | 2 16 Treads . | . . Legs . | . . Wheels 163 | 81 82 Hover . | . . Flight . | . . Fastest Speed 50 | 50 50 Average Speed 125 | 98 147 Slowest Speed 500 | 100 500 Overloaded Moves . | . . Propulsion Burnouts . | . . Robots Hopped . | . . Potential Cave-ins . | . . Cave-ins Triggered . | . . Exploration Rate (%) 15 | 5 26 Regions Visited 1 Branch Regions . Pre-discovered Areas . | . . Known Exits Taken . | . . Unknown Exits Taken 1 | 1 . Scrap Searched . | . . Spaces Dug 16 | . 16 Terrain Destroyed 31 | . 31 Melee . | . . Projectile . | . . AOE 31 | . 31 Terrain Rammed 1 | . 1 Walls Destroyed . | . . Machines Disabled . | . . Actions | -11 -10 --------- Run | Yrd Mat Total 238 | 102 136 Wait 5 | . 5 Move 180 | 82 98 Hop . | . . Pick Up 8 | 6 2 Fast Attach 9 | 7 2 Attach . | . . Detach 3 | . 3 Swap 3 | . 3 Drop 4 | . 4 Fire 26 | 7 19 Melee . | . . Ram . | . . Kick . | . . Crush . | . . Escape Stasis . | . . Rewire . | . . Trap . | . . Miscellaneous . | . . Route ------- -11/Scrapyard -10/Materials (discovered 2 exits: [*Mat] / [*Min]) History --------- Turn | Location | Event 7 | -11/Scrapyard | Discovered new exit (range 15) 119 | -11/Scrapyard | Entered Materials 137 | -10/Materials | Discovered new exit (range 16) 238 | -10/Materials | Core integrity fell below 50% 242 | -10/Materials | Discovered new exit (range 11) 308 | -10/Materials | Lost 3 parts (1n1u1w) 315 | -10/Materials | Build established: Mutant 331 | -10/Materials | Core integrity fell below 20% 334 | -10/Materials | Core destroyed Last Messages --------------- 00307_ K-01 Serf collects debris. 00310_ U-05 Engineer lays Concrete. 00310_ K-01 Serf collects debris. 00311_ U-05 Engineer lays Concrete. 00322_ K-01 Serf collects debris. 00322_ U-05 Engineer lays Concrete. 00325_ K-01 Serf collects debris. 00326_ Dropped Lrg. Storage Unit. 00327_ Dropped Lgt. Assault Rifle. 00327_ U-05 Engineer lays Concrete. 00328_ U-05 Engineer destroyed. 00328_ K-01 Serf collects debris. 00330_ Grenade Launcher destroyed. 00330_ Destroyed Grenade Launcher. 00330_ U-05 Engineer lays Concrete. 00332_ K-01 Serf collects debris. 00333_ The unstable cave ceiling collapses. 00333_ U-05 Engineer lays Concrete. 00334_ Slammed into Wall. 00334_ Destabilizing: Core damaged (-10). Map ----- +----------------------------------------------------+ | | | ?????????????????????????????????????????????????? | | ?????????????????????????????????????????????????? | | ?????????????????????????????????????????????????? | | ?????????????????????????????????????????????????? | | ?????????????????????????????????????????????????? | | ?????????????????????????????????????????????????? | | ?????????????????????????????????????????????????? | | ?????????????????????????????????????????????????? | | ?????????????????????????????????????????????????? | | ?????????????????????????????????????????????????? | | ???????# ?????#####??????????????????????????????? | | ???????# ????# #??????????????????????????????? | | ???????# "???# < #??????????????????????????????? | | ???????# ??# #??????????????????????????????? | | ???????# ## ### ##?????????????????????????????? | | ??????## #?????????????????????????????? | | ??????# #######???????????????????????? | | ??????# !* " = !# ## ##??????????????????????? | | ???????#** * !!||== #??????????????????????? | | ???????# ^ !!||== #??????????????????????? | | ???????# ^ % !=*!* #??????????????????????? | | ???????+ =u %=| ########## ##?????????? | | ???????# ! [ #?????????? | | ???????# m%= = " !??????????? | | ???????# *= * @ #?????????? | | ???????# ##### w########## !#?????????? | | ?????????????#### =% #????####+??#?????????? | | ????????????????## ! " #???? ?? ?????????? | | ????????????????# ; " #???? ?? ??????????? | | ????????????????##; " #???? ? ???????????? | | ????????????????# ; " ##??# ! ? ???????????? | | ????????????????# ; " #??# ????????????? | | ????????????????# ;;#+###" ##??# ?????????????? | | ??????????########; # # ##???# [??????????????? | | ???????# ## ### #""####### ???????????????? | | ?????? ##"""""##+#???????????????? | | ?????? < ##""T""## ##############??? | | ?????? #??? | | ?????? #" "## #??? | | ??????????#" |"! "?# """ #??? | | ??????????#""""""??# """"" ##+##### ####??? | | ??????????#?######## """"" # ## #?????? | | ?????????????+ # """"" # """ ## #?????? | | ?????????????# # """ # """ ## #?????? | | ?????????????# # # """ ## #?????? | | ?????????????# """ + + """ ## #?????? | | ?????????????# """ # # """ ## #?????? | | ?????????????# """ # # ## #?????? | | ?????????????# ########### ####?### #?????? | +----------------------------------------------------+ Best States ------------- Heat Dissipation 25 Energy Generation 10 Energy Capacity 250 Matter Stores 300 Matter Capacity 300 Sight Range 16 Terrain Scan Density 10 Evasion (%) 40 Item Schematics ----------------- None Robot Schematics ------------------ None Fabricated ------------ Nothing Repaired ---------- Nothing Alien Tech Used ----------------- None Achievements -------------- None Challenges ------------ None Game ------ Seed MyomerMissileAccelerator Manual? 0 Play Time 00:06:15 Cumulative 122.9 hours Start 2025.08.19 @ 06:08:56 End 2025.08.19 @ 06:12:55 Sessions 1 Manual Loads 0 Difficulty Rogue Special Mode None Game No. 135 Rogue 135 Adventurer 0 Explorer 0 Win Type - Total 0 Types 0/0/0/0/0/0/0/0/0/0 Lore% 61 Gallery% 45 Achievement% 37 Wizard Run 0 Options --------- Layout 1 ASCII 0 Keyboard 0 Movement Mouse Keybinds 0 Fullscreen 2 Font 48/Smallcaps Map View 50x35 Zoom Use 0% Tactical HUD 1 Map Filters NONE Filters NONE Steam 0 RUN: 07f3b2f2-f9e8-4821-9210-679b1bbd98c9